Cogmind - Beta 15 @@@ ROGUE MODE // 2025.07.30 @ 16:17:48 Player: shapeshifter Result: Destroyed by D-53 Grenadier with Mini Grenade Launcher Performance ------------- Evolutions (0) 0 Regions Visited (2) 400 Robots Destroyed (21) 105 Value Destroyed (458) 458 Prototype IDs (0) 0 Alien Tech Used (0) 0 Bonus (0) 0 TOTAL SCORE: 963 Bonus ------- None Cogmind --------- Core Integrity 0/250 Matter 205/300 Energy 72/100 System Corruption 0% Temperature Cool (0) Movement Treading (160) Location -10/Mines Parts ------- > --- POWER (1) -------- (None) > --- PROPULSION (2) --- Light Treads > --- UTILITY (2) ------ Large Storage Unit > --- WEAPON (2) ------- (None) > --- INVENTORY (15) --- Light Ion Engine Compact Wheel Large Storage Unit Large Matter Pod (150) Seismic Detector Hardened Light Armor Plating Hardened Light Armor Plating Hardened Light Armor Plating Peak State ------------ > --- POWER ------------ Ion Engine > --- PROPULSION ------- Light Treads Light Treads > --- UTILITY ---------- Small Storage Unit Seismic Detector > --- WEAPON ----------- EM Pulse Gun EM Pulse Gun > --- INVENTORY -------- Light Ion Engine Wheel Compact Wheel Hardened Light Armor Plating Hardened Light Armor Plating Hardened Light Armor Plating Small Laser Datajack [Rating: 8] Favorites ----------- Power Ion Engine Engine Ion Engine Propulsion Light Treads Treads Light Treads Utility Seismic Detector Device Seismic Detector Storage Large Storage Unit Protection Hardened Light Armor Plating Weapon EM Pulse Gun Energy Gun EM Pulse Gun Launcher Grenade Launcher Build | -11 -10 -10 ------- Run | Yrd Mat Min Slots Evolved . | . . . Power . | . . . Propulsion . | . . . Utility . | . . . Weapon . | . . . Parts Attached 17 | 7 4 6 Power 1 | 1 . . Engine 1 | 1 . . Core . | . . . Reactor . | . . . Propulsion 6 | 2 1 3 Treads 6 | 2 1 3 Leg . | . . . Wheel . | . . . Hover . | . . . Flight . | . . . Utility 4 | 2 1 1 Device 1 | 1 . . Storage 2 | 1 1 . Processor . | . . . Hackware . | . . . Protection 1 | . . 1 Artifact . | . . . Weapon 6 | 2 2 2 Energy Gun 4 | 2 2 . Energy Cannon . | . . . Ballistic Gun . | . . . Ballistic Cannon . | . . . Launcher 2 | . . 2 Special Weapon . | . . . Impact Weapon . | . . . Slashing Weapon . | . . . Piercing Weapon . | . . . Special Melee Weapon . | . . . Unidentified Prototypes . | . . . Parts Lost 10 | . . 10 Power 1 | . . 1 Propulsion 4 | . . 4 Utility 1 | . . 1 Weapon 4 | . . 4 Highest Loss Streak 10 | . . 10 To Critical Strikes . | . . . Average Backups 11 | 2 10 12 Power . | . 1 1 Propulsion 3 | 1 3 3 Utility 5 | . 4 6 Weapon 1 | . 1 1 Tool/Special . | . . . Unused Backups 10 | . 3 7 Power 1 | . . 1 Propulsion 2 | . 1 1 Utility 5 | . . 5 Weapon 1 | . 1 . Tool/Special 1 | . 1 . Average Slot Usage (%) 99 | . 100 98 Engine 13 | . 14 13 Treads 27 | . 28 27 Device 13 | . 14 13 Storage 14 | . 14 14 Energy Gun 27 | . 28 27 Peak Build Rating 8 | 7 8 8 Average Rating 7 | 4 7 7 On Entrance 5 | . 7 8 Naked Turns . | . . . Heaviest Build 30 | 15 30 30 Greatest Support 40 | 40 40 40 Greatest Overweight (x) 1 | . . 1 Average Overweight (x) . | . . . Largest Inventory Capacity 15 | 8 15 15 Average Capacity 13 | 7 12 15 Most Carried 14 | 5 14 13 Average Carried 11 | 3 10 12 Final Capacity 15 | 8 15 15 Final Carried 13 | 4 13 8 Class Distribution -------------------- 100% | Mutant Dominant Class ---------------- Mutant | -10/Materials Mutant | -10/Mines Resources | -11 -10 -10 ----------- Run | Yrd Mat Min Matter Collected 460 | 175 275 10 Remotely . | . . . Salvage Created 661 | 30 547 84 Parts 37 | 4 28 5 Haulers Intercepted 1 | . 1 . Recyclers Shooed . | . . . Parts Field Recycled . | . . . Retrieved Matter . | . . . Parts Self-Destructed . | . . . Prevented . | . . . Kills | -11 -10 -10 ------- Run | Yrd Mat Min Combat Hostiles Destroyed 17 | . 13 4 Guns 16 | . 13 3 AOE 1 | . . 1 Classes Destroyed 7 | 1 5 1 Tunneler 1 | 1 . . Hauler 1 | . 1 . Watcher 2 | . 2 . Swarmer 9 | . 6 3 Grunt 6 | . 6 . Demolisher 1 | . . 1 Subdweller 1 | . 1 . Best Kill Streak 6 | 1 6 3 Combat Bots Only 6 | . 6 3 Max Kills in Single Turn 2 | 1 1 2 Gunslinging 1 | . . 1 Exploded 1 | . . 1 Melee . | . . . Uniques/NPCs Destroyed . | . . . Combat | -11 -10 -10 -------- Run | Yrd Mat Min Hostile Shots Fired 95 | . 51 44 Missed 31 | . 25 6 Hits 64 | . 26 38 Melee 1 | . . 1 Projectile 63 | . 26 37 AOE 24 | . . 24 Damage Taken 1488 | . 341 1147 Core 255 | . 15 240 Absorbed by Shields . | . . . Core Remaining (%) 100 | 100 . . Volleys Fired 49 | 1 36 12 Largest 2 | 2 2 2 Hottest 90 | 80 80 90 Shots Fired 92 | 2 72 18 Gun 86 | 2 72 12 Cannon . | . . . Launcher 6 | . . 6 Special . | . . . Kinetic . | . . . Thermal 6 | . . 6 Explosive 6 | . . 6 Electromagnetic 80 | 2 72 6 Robot Hit Streak 8 | 1 8 6 Robot Miss Streak 3 | 1 3 3 Penetration Max . | . . . Secondary Targets 5 | . 4 1 Max Gunslinging Chain 1 | . 1 1 Shots Hit Robots 56 | 1 44 11 Core Hits 30 | 1 22 7 Critical Kills . | . . . Critical Parts Destroyed . | . . . Critical Strikes . | . . . Melee Attacks . | . . . Impact . | . . . Slashing . | . . . Piercing . | . . . Sneak Attacks . | . . . Combat Hostiles . | . . . Follow-up Attacks . | . . . Damage Inflicted 853 | 12 718 123 Guns 693 | 12 603 78 Cannons . | . . . Explosions 160 | . 115 45 Melee . | . . . Ramming . | . . . Kinetic . | . . . Thermal 153 | . 115 38 Explosive 45 | . . 45 Electromagnetic 655 | 12 603 40 Impact . | . . . Slashing . | . . . Piercing . | . . . Highest Corruption . | . . . Average Corruption . | . . . Corruption Purged . | . . . Corruption Blocked . | . . . Overload Shots . | . . . Overflow Damage . | . . . Projectiles . | . . . Explosions . | . . . Melee . | . . . Knockbacks . | . . . Impact . | . . . Kinetic . | . . . Secondary . | . . . Self-Inflicted Damage 46 | . 40 6 Shots 2 | . 1 1 Rammed . | . . . Targets Rammed . | . . . Kicked . | . . . Crushed . | . . . Highest Temperature 150 | 18 144 150 Average Temperature 56 | 12 55 67 Received Heat Transfer 116 | . 96 20 Siege Activations . | . . . Martial Activations . | . . . Shielding Activations . | . . . Robots Disrupted . | . . . Combat Hostiles . | . . . Robots Corrupted . | . . . Combat Hostiles . | . . . Parts Fried 1 | . 1 . Impact Corruptions . | . . . Robots Melted . | . . . Combat Hostiles . | . . . Parts Melted 1 | . . 1 Heat Transferred 211 | . 100 111 Parts Sabotaged . | . . . Parts Stolen . | . . . Parts Stripped . | . . . Power Chain Reactions 3 | . 3 . Alert | -11 -10 -10 ------- Run | Yrd Mat Min Maximum Alert Level . | . . . Low Security (%) 100 | 100 100 100 Level 1 . | . . . Level 2 . | . . . Level 3 . | . . . Level 4 . | . . . Level 5 . | . . . High Security . | . . . Max Security . | . . . Peak Influence 147 | 5 147 116 Initial 46 | . . 46 Average 27 | . 42 15 Influence Increases 495 | 5 391 99 Destroy 0b10 Robot/C 320 | . 240 80 Destroy 0b10 Robot/NC 20 | 5 15 . Destroy Leader 66 | . 56 10 Successful Hack 27 | . 27 . Disable Machine 45 | . 45 . Destroy Structure 17 | . 8 9 Influence Decreases 495 | 5 270 220 Entered New Map 75 | . . 75 Time Decay 397 | 5 270 122 Lost Part 23 | . . 23 Squads Dispatched 3 | . 3 . Investigation 2 | . 2 . Extermination . | . . . Reinforcement 1 | . 1 . Assault . | . . . Garrison . | . . . Intercept . | . . . Searches Triggered . | . . . Construction Impeded . | . . . Haulers Reinforced . | . . . Active Scanning Responses . | . . . Cargo Convoy Interrupts . | . . . Stealth | -11 -10 -10 --------- Run | Yrd Mat Min Distress Signals 1 | . 1 . Communications Jammed . | . . . Distress Signals . | . . . Times Spotted 27 | . 15 12 Peak Tracking Total 7 | . 4 7 Tactical Retreats 1 | . 1 . Traps | -11 -10 -10 ------- Run | Yrd Mat Min Traps Triggered 1 | . 1 . Indirectly . | . . . Trap Hack Attempts . | . . . Triggered . | . . . Disarmed . | . . . Reprogrammed . | . . . Reused . | . . . Traps Extracted . | . . . Installed . | . . . Triggered . | . . . Machines | -11 -10 -10 ---------- Run | Yrd Mat Min Machines Disabled 3 | . 3 . Max in Single Turn 1 | . 1 . Machines Repaired . | . . . Machines Dismantled . | . . . Machines Sabotaged . | . . . Overloaded Fab Kills . | . . . Hacking | -11 -10 -10 --------- Run | Yrd Mat Min Machines Accessed 4 | . 4 . Terminals 4 | . 4 . Fabricators . | . . . Repair Stations . | . . . Recycling Units . | . . . Scanalyzers . | . . . Garrison Access . | . . . Total Hacks 11 | . 11 . Successful 8 | . 8 . Failed 3 | . 3 . Catastrophic . | . . . Database Lockouts . | . . . Manual 10 | . 10 . Terminals 11 | . 11 . Fabricators . | . . . Repair Stations . | . . . Recycling Units . | . . . Scanalyzers . | . . . Garrison Access . | . . . Terminal Hacks 4 | . 4 . Branch Access Points 1 | . 1 . Locate Traps 1 | . 1 . Registered Components 1 | . 1 . Zone Layout 1 | . 1 . Fabricator Hacks . | . . . Repair Station Hacks . | . . . Recycling Unit Hacks . | . . . Scanalyzer . | . . . Garrison Access Hacks . | . . . Unauthorized Hacks 4 | . 4 . Terminals 4 | . 4 . Botnet 4 | . 4 . Fabricators . | . . . Repair Stations . | . . . Recycling Units . | . . . Scanalyzers . | . . . Garrison Access . | . . . Data Cores Recovered . | . . . Used . | . . . Hacking Detections 2 | . 2 . Full Trace Events 2 | . 2 . Feedback Events . | . . . Feedback Blocked . | . . . Robot Schematics Acquired . | . . . Robots Built . | . . . Authchips . | . . . Time . | . . . Total Robot Build Rating . | . . . Part Schematics Acquired . | . . . Parts Built . | . . . Authchips . | . . . Time . | . . . Total Part Build Rating . | . . . Parts Repaired . | . . . Time . | . . . Parts Recycled . | . . . Recycled Matter . | . . . Retrieved Matter . | . . . Retrieved Components . | . . . Parts Scanalyzed . | . . . Part Schematics Acquired . | . . . Parts Damaged . | . . . Bothacking | -11 -10 -10 ------------ Run | Yrd Mat Min Used RIF Installer . | . . . Robots Hacked . | . . . Non-combat . | . . . Combat . | . . . Robot Hacks Applied . | . . . Relay Couplers Released . | . . . Fabnet Peak Effective % . | . . . Robots Rewired . | . . . Allies Hacked . | . . . Hacks Repelled . | . . . Allies | -11 -10 -10 -------- Run | Yrd Mat Min Total Allies . | . . . Largest Group . | . . . Highest-Rated Group . | . . . Highest-Rated Ally . | . . . Total Orders . | . . . Ally Attacks . | . . . Total Damage . | . . . Kills . | . . . Allies Corrupted . | . . . Allies Melted . | . . . Intel | -11 -10 -10 ------- Run | Yrd Mat Min Active Infowar (turns) 1866 | 9 931 926 Seismic 1866 | 9 931 926 Robot Analysis Total . | . . . Derelict Logs Recovered . | . . . Drone Launches . | . . . Drone Recoveries . | . . . Exploration | -11 -10 -10 ------------- Run | Yrd Mat Min Turns Passed 1966 | 87 931 948 Spaces Moved 982 | 55 406 521 Core 19 | 19 . . Treads 963 | 36 406 521 Legs . | . . . Wheels . | . . . Hover . | . . . Flight . | . . . Fastest Speed 50 | 50 160 160 Average Speed 157 | 122 160 160 Slowest Speed 240 | 160 160 240 Overloaded Moves . | . . . Propulsion Burnouts . | . . . Robots Hopped . | . . . Potential Cave-ins . | . . . Cave-ins Triggered . | . . . Exploration Rate (%) 40 | 4 71 45 Regions Visited 2 Branch Regions 1 Pre-discovered Areas . | . . . Known Exits Taken 1 | . 1 . Unknown Exits Taken 1 | 1 . . Scrap Searched . | . . . Spaces Dug . | . . . Terrain Destroyed 29 | . 7 22 Melee . | . . . Projectile . | . . . AOE 29 | . 7 22 Terrain Rammed . | . . . Walls Destroyed . | . . . Machines Disabled . | . . . Actions | -11 -10 -10 --------- Run | Yrd Mat Min Total 1309 | 73 619 617 Wait 228 | . 150 78 Move 980 | 54 405 521 Hop . | . . . Pick Up 27 | 11 16 . Fast Attach . | . . . Attach 12 | 7 . 5 Detach . | . . . Swap 5 | . 4 1 Drop 8 | . 8 . Fire 49 | 1 36 12 Melee . | . . . Ram . | . . . Kick . | . . . Crush . | . . . Escape Stasis . | . . . Rewire . | . . . Trap . | . . . Miscellaneous . | . . . Route ------- -11/Scrapyard -10/Materials (discovered 3 exits: [*Mat x2] / *Min) -10/Mines (discovered 3 exits: [*Mat x2] / [*Sub]) History --------- Turn | Location | Event 8 | -11/Scrapyard | Discovered new exit (range 15) 88 | -11/Scrapyard | Entered Materials 318 | -10/Materials | Build established: Mutant 347 | -10/Materials | Discovered new exit (range 14) 649 | -10/Materials | Identified exit to Mines 688 | -10/Materials | Derelicts attacked the area 907 | -10/Materials | Discovered new exit (range 9) 1019 | -10/Materials | Entered Mines 1033 | -10/Mines | Met a Derelict bent on vengeance 1060 | -10/Mines | Discovered new exit (range 10) 1146 | -10/Mines | Discovered new exit (range 4) 1213 | -10/Mines | Discovered new exit (range 15) 1899 | -10/Mines | Assembled infested the area 1945 | -10/Mines | Core integrity fell below 50% 1960 | -10/Mines | Core integrity fell below 20% 1967 | -10/Mines | Destroyed by D-53 Grenadier with Mini Grenade Launcher Last Messages --------------- payload. 01935_ D-53 Grenadier unfolds itself. 01936_ EM Pulse Gun destroyed. 01938_ as-57131 destroyed. 01938_ Med. Laser destroyed. 01939_ as-34966 destroyed. 01939_ as-11740 destroyed. 01940_ Lgt. Treads destroyed. 01940_ as-20380 destroyed. 01942_ Lgt. Treads destroyed. 01942_ Ion Engine destroyed. 01942_ as-57703 destroyed. 01944_ as-62739 destroyed. 01945_ The unstable cave ceiling collapses. 01956_ D-53 Grenadier destroyed. 01957_ Lgt. Treads destroyed. 01961_ Grenade Launcher destroyed. 01963_ Hrd. Light Armor Plating destroyed. 01965_ Lgt. Treads destroyed. 01967_ Grenade Launcher destroyed. Map ----- +----------------------------------------------------+ | ##?### #????????????????????????????????????????? | | ##??# #????????????????????????????????????????? | | ????# #####?????????????????????????????????????? | | ????# # ##????????????????????????????????????? | | ??### #????????????????????????????????????? | | ?## #????????????????????????????????????? | | ?# #????????????????????????????????????? | | ## #????????????????????????????????????? | | # #????????????????????????????????????? | | #????????????????????????????????????? | | ##??????#####?????????????????????????? | | ### ####???????# ????? ???????????????????? | | ##?# #??????????# ?????? ?????????????????? | | ##?# #??????????# #??????= ??????????????????? | | #?# ############ #?????! ??????????????????? | | #?# "#????? ??????????????????? | | ##?###############%#????? ???????????????????? | | ###???????????????? #????? #???????????????????? | | ??????????????????## #????? #???????????????????? | | ????????????????### ????$ #####???????????????? | | ????????????????# #### < ##??????????????? | | ????????????????## * #??????????????? | | ??????????????### % #??????????????? | | ??????????????# #???????????????? | | ??????????????# d #????????????????? | | ??????????????# @ #????????????????? | | #?????????????# ##???????????????? | | #?????????????# #???????????????? | | #?????????????## #?????????????? | | ##?????????????## # ## #????????????? | | ##???????????????# k # ##?? #????????????? | | #???????????????#### ##????? #????????????? | | ##????????????????##### ##????????????????????? | | #????????????????????## ?????????????????????? | | #?????????????????????# a ????????????????????? | | #?????????????????????? ???????????????????? | | ####?????????????????????? ??????????????????? | | ###############???????????# ?????????????????? | | #????????????# ????????????????? | | ############# #?????????????# ?????????????????? | | ????????????# #?????????????? ?????????????????? | | ????????????# #??????????????? ?????????????????? | | ???########?# #??????????????????????????????????? | | ???# ### #??????????????????????????????????? | | ???# #??????????????????????????????????? | | ???# #####??????????????????????????????????? | | ???# #??????????????????????????????????????? | | ???########??????????????????????????????????????? | | ?????????????????????????????????????????????????? | | ?????????????????????????????????????????????????? | +----------------------------------------------------+ Best States ------------- Heat Dissipation 25 Energy Generation 10 Energy Capacity 250 Matter Stores 300 Matter Capacity 300 Sight Range 16 Terrain Scan Density 10 Armor Coverage 150 Evasion (%) 50 Recoil Reduction 2 Item Schematics ----------------- None Robot Schematics ------------------ None Fabricated ------------ Nothing Repaired ---------- Nothing Alien Tech Used ----------------- None Achievements -------------- None Challenges ------------ None Game ------ Seed SapperThermicDevice Manual? 0 Play Time 00:14:08 Cumulative 77.9 hours Start 2025.07.30 @ 15:55:40 End 2025.07.30 @ 16:17:48 Sessions 1 Manual Loads 0 Difficulty Rogue Special Mode None Game No. 157 Rogue 157 Adventurer 0 Explorer 0 Win Type - Total 1 Types 1/0/0/0/0/0/0/0/0/0 Lore% 56 Gallery% 53 Achievement% 40 Wizard Run 0 Options --------- Layout 1 ASCII 0 Keyboard 0 Movement Mouse Keybinds 0 Fullscreen 1 Font 24/Smallcaps Map View 50x40 Zoom Use 0% Tactical HUD 1 Map Filters NONE Filters NONE Steam 1 RUN: a78ec71a-78c9-4920-9ffb-2b3337ac66ba